[Event "Hungarian Championship Women 2022"]
[Site "Budapest"]
[Date "2022.12.05"]
[Round "1.1"]
[White "Demeter, Dorina"]
[Black "Terbe, Zsuzsanna"]
[Result "1/2-1/2"]
[ECO "A06"]
[WhiteElo "2149"]
[BlackElo "2114"]
[Annotator "TA"]
[PlyCount "100"]
[EventDate "2022.12.03"]
[EventType "tourn"]
[EventCountry "HUN"]
[SourceTitle "playchess.com"]
[Source "ChessBase"]
[SourceQuality "1"]
[TimeControl "40/5400+30:1800+30"]

{[%evp 11,100,16,12,18,13,15,7,5,33,39,52,39,41,53,45,26,38,11,35,19,20,42,25,42,39,14,13,-26,-16,-16,-10,-11,0,-7,0,-19,-9,-8,-10,-5,0,0,24,27,32,10,12,15,19,3,13,-62,-62,-63,-63,-65,-65,-67,-39,-62,-62,-62,-62,-62,-55,-62,-62,-62,-62,-62,-62,-72,-72,-72,-72,-72,-72,-72,-72,-72,-72,-72,-62,-72,-62,-63,0,-75,0,-64,0]} 1. Nf3 {[%emt 0:00:36]} d5 {[%emt 0:00:36]} 2. g3 {[%emt 0:00:12]} Nf6 {[%emt 0:01:04]} 3. Bg2 {[%emt 0:00:39]} c6 {[%emt 0:00:07]} 4. O-O {[%emt 0:01:30]} Bf5 {[%emt 0:00:37]} 5. c4 {[%emt 0:00:57]} e6 {[%emt 0:00:21]} 6. Qb3 {[%emt 0:00:52]} Qb6 {[%emt 0:00:37]} 7. d3 {[%emt 0:00:44][%cal Bd2d3,Bd3e4][%mdl 32] A11: English Opening: 1...c6.} Nbd7 {[%emt 0:00:40]} (7... Qxb3 {simplifies} 8. axb3 a6 9. Bd2 Nbd7) 8. cxd5 {[%emt 0:00:58]} exd5 {[%emt 0:00:36]} 9. Qc2 {[%emt 0:02:53][%cal Oe2e4] The position is equal.} Be7 {[%emt 0:03:44] Inhibits e4.} (9... Qc5 $5 {[%cal Rc5c2]} 10. Qb3 Qb4 $11) 10. Nc3 {[%emt 0:01:53]} O-O {[%emt 0:02:51]} 11. e4 {[%emt 0:02:21]} dxe4 {[%emt 0:00:32]} 12. dxe4 {[%emt 0:00:08]} Bg6 {[%emt 0:03:32][%cal Of6d5]} 13. Be3 {[%emt 0:03:20]} Qa5 {[%emt 0:01:12]} 14. Nh4 {[%emt 0:08:20]} Ng4 {[%emt 0:20:50] [#] Hoping for ...Bxh4.} 15. Nxg6 {[%emt 0:05:27]} hxg6 {[%emt 0:00:19]} 16. Bd2 {[%emt 0:10:16]} Qh5 {[%emt 0:01:48][%csl Gg4][%cal Rh5h2]} 17. h3 {[%emt 0:04:40]} Nge5 {[%emt 0:00:37] [#]} 18. Be3 $146 {[%emt 0:21:45]} (18. f4 $5 {[%cal Rf4e5]} Nc4 19. Bc1 $11) ({Predecessor:} 18. Qd1 Rfd8 19. Qxh5 gxh5 20. Rad1 h4 21. gxh4 Bxh4 22. b3 Be7 23. f4 Bc5+ 24. Kh2 {½-½ (33) Svane,R (2613)-Martirosyan,H (2622) Chess.com INT 2020}) 18... g5 {[%emt 0:23:08]} 19. g4 {[%emt 0:16:20]} Qh6 {[%emt 0:04:50]} 20. Ne2 $1 {[%emt 0:01:00]} Qe6 {[%emt 0:11:54]} 21. Nd4 {[%emt 0:03:58]} Qc4 {[%emt 0:00:20]} 22. Rfc1 {[%emt 0:01:04]} Qxc2 {[%emt 0:04:10]} 23. Rxc2 {[%emt 0:00:05]} Bf6 {[%emt 0:00:06]} 24. Nf3 {[%emt 0:08:11]} Nxf3+ {[%emt 0:00:44]} 25. Bxf3 {[%emt 0:00:02]} Rfe8 {[%emt 0:01:02]} 26. Rd1 {[%emt 0:01:01]} Nb6 {[%emt 0:03:24]} 27. b3 {[%emt 0:01:22]} Rad8 {[%emt 0:02:20]} 28. Rcd2 {[%emt 0:00:40]} Rxd2 {[%emt 0:03:42]} 29. Rxd2 {[%emt 0:00:03][%cal Oh3h4]} Rd8 {[%emt 0:00:11]} 30. Rxd8+ {[%emt 0:01:23]} Bxd8 {[%emt 0:00:03]} 31. Bxb6 {[%emt 0:02:19]} ({White should try} 31. e5 $11) 31... Bxb6 $11 {[%emt 0:00:20][%mdl 4096] Endgame KB-KB} 32. Be2 {[%emt 0:00:44]} Kf8 {[%emt 0:00:28]} 33. Bc4 {[%emt 0:00:14]} Ke7 {[%emt 0:00:03]} 34. Kf1 {[%emt 0:00:18]} f6 {[%emt 0:00:07]} 35. Ke2 {[%emt 0:00:38]} Kd6 {[%emt 0:01:03]} 36. f3 {[%emt 0:00:52]} Ke5 {[%emt 0:06:12]} 37. Kd3 {[%emt 0:00:39]} Kf4 {[%emt 0:00:06]} 38. Ke2 {[%emt 0:00:12]} Bd4 {[%emt 0:02:39]} 39. Be6 {[%emt 0:00:27]} c5 {[%emt 0:00:36]} 40. a4 {[%emt 0:00:00]} b6 {[%emt 0:00:00]} 41. Bc4 {[%emt 0:02:36]} Kg3 {[%emt 0:00:51]} 42. Ba6 {[%emt 0:00:37]} Kxh3 {[%emt 0:00:07]} 43. Bc4 {[%emt 0:00:38]} Kg3 {[%emt 0:00:05]} 44. Ba6 {[%emt 0:00:07]} Kf4 {[%emt 0:00:07]} 45. Bc4 {[%emt 0:00:23]} Ke5 {[%emt 0:00:13]} 46. Kd3 {[%emt 0:00:15]} Bg1 {[%emt 0:00:17]} 47. Ba6 {[%emt 0:01:00]} Kf4 {[%emt 0:00:33]} 48. Ke2 {[%emt 0:00:05]} Ke5 {[%emt 0:00:03]} 49. Kd3 {[%emt 0:00:04]} Kf4 {[%emt 0:00:04]} 50. Ke2 {[%emt 0:00:03]} Ke5 {[%emt 0:00:04] Weighted Error Value: White=0.08 (flawless) /Black=0.07 (flawless)} (50... Bh2 $15) 1/2-1/2

[Event "Hungarian Championship Women 2022"]
[Site "Budapest"]
[Date "2022.12.05"]
[Round "1.2"]
[White "Karacsonyi, Kata"]
[Black "Havanecz, Bianka"]
[Result "1/2-1/2"]
[ECO "C44"]
[WhiteElo "2109"]
[BlackElo "2210"]
[Annotator "TA"]
[PlyCount "97"]
[EventDate "2022.12.03"]
[EventType "tourn"]
[EventCountry "HUN"]
[SourceTitle "playchess.com"]
[Source "ChessBase"]
[SourceQuality "1"]
[TimeControl "40/5400+30:1800+30"]

{[%evp 14,97,35,21,50,33,41,27,36,37,40,55,55,47,66,47,78,36,25,20,22,18,35,20,32,0,-2,-42,50,59,189,185,178,177,183,169,169,162,177,164,170,166,163,142,143,76,86,79,88,97,92,93,113,93,96,99,89,98,100,108,180,152,232,224,216,200,255,241,268,264,267,260,282,252,272,252,241,237,240,241,246,0,171,0,204,0]} 1. e4 {[%emt 0:00:31]} e5 {[%emt 0:00:45]} 2. Nf3 {[%emt 0:00:08]} Nc6 {[%emt 0:00:05]} 3. d4 {[%emt 0:00:10]} exd4 {[%emt 0:00:07]} 4. Bc4 {[%emt 0:00:06]} d6 {[%emt 0:01:22]} 5. Nxd4 {[%emt 0:00:25]} Nf6 {[%emt 0:00:24]} 6. Nc3 {[%emt 0:00:24]} Be7 {[%emt 0:00:10]} 7. O-O {[%emt 0:00:50]} O-O {[%emt 0:00:17]} 8. Bf4 {[%emt 0:00:58]} Ne5 {[%emt 0:05:26] C50: Hungarian Defence and Giuoco Pianissimo.} (8... Re8 {looks sharper.} 9. Re1 Nxd4 10. Qxd4 Ng4) 9. Bb3 {[%emt 0:00:09]} a6 {[%emt 0:00:49]} 10. a4 {[%emt 0:18:25]} Re8 {[%emt 0:09:11] White has an edge.} 11. h3 {[%emt 0:05:53]} Bf8 {[%emt 0:01:34] [#]} 12. Re1 $146 {[%emt 0:02:42]} ({Predecessor:} 12. Nf3 Bd7 13. Bxe5 dxe5 14. Qe2 c6 15. Rad1 Qc7 16. Ng5 Re7 17. Rd3 h6 18. Nxf7 Rxf7 {½-½ (27) Ghassan,H-Majed,A Beirut 1999}) 12... Ned7 {[%emt 0:03:31]} 13. Qf3 {[%emt 0:09:47]} Nc5 {[%emt 0:03:23]} 14. Bc4 {[%emt 0:02:14]} (14. Ba2 $5 {[%cal Ra1d1]}) 14... Ne6 {[%emt 0:00:21]} 15. Nxe6 {[%emt 0:08:11] White is much more active.} Bxe6 {[%emt 0:00:19]} 16. Bd3 {[%emt 0:13:10]} Nd7 {[%emt 0:00:42]} 17. Rad1 {[%emt 0:03:54]} Qf6 {[%emt 0:04:09]} 18. Qg3 {[%emt 0:05:22]} Ne5 {[%emt 0:05:31]} 19. Bg5 {[%emt 0:04:32]} Qg6 {[%emt 0:00:05][%cal Oe6h3]} 20. f4 {[%emt 0:03:10] Strongly threatening f5.} (20. Be2 {simplifies} Be7 21. Bh4 Qxg3 22. Bxg3 Bf6 23. f4) 20... Nxd3 {[%emt 0:00:12]} (20... h6 $15) 21. f5 $1 $36 {[%emt 0:04:19][%mdl 2048] Black is under pressure.} Bxf5 {[%emt 0:04:27]} (21... Qh5 $14 22. Rxd3 (22. cxd3 Bb3 $11) 22... Bxf5 $1) 22. exf5 $18 {[%emt 0:01:06]} Qxf5 {[%emt 0:01:21]} 23. cxd3 {[%emt 0:00:27]} (23. Rxd3 $2 {perishes.} Rxe1+ 24. Qxe1 Qxg5 $19) 23... d5 {[%emt 0:01:58]} 24. Rf1 {[%emt 0:02:23]} Qd7 {[%emt 0:00:13]} 25. d4 {[%emt 0:01:27]} Re6 {[%emt 0:01:30]} 26. Qg4 {[%emt 0:03:35]} c6 {[%emt 0:02:25]} 27. Rde1 {[%emt 0:01:35]} Rae8 {[%emt 0:00:49]} 28. Re5 {[%emt 0:02:30]} h5 {[%emt 0:06:36]} 29. Qxh5 {[%emt 0:02:08]} (29. Qf5 $142) 29... Rxe5 $16 {[%emt 0:00:04]} 30. dxe5 {[%emt 0:00:04]} Rxe5 {[%emt 0:00:10] [#]} 31. Qh4 $1 {[%emt 0:00:12]} b5 {[%emt 0:01:21]} 32. Qg3 {[%emt 0:01:43] Against b4} Re8 {[%emt 0:01:18]} 33. axb5 {[%emt 0:00:38]} axb5 {[%emt 0:00:05]} 34. Qf3 {[%emt 0:00:46]} Bc5+ {[%emt 0:05:07]} 35. Kh1 {[%emt 0:00:05]} Qe6 {[%emt 0:02:17]} 36. Bh4 {[%emt 0:02:30]} b4 {[%emt 0:04:46]} (36... Qd7 $16) 37. Na4 $18 {[%emt 0:01:50][%cal Bc3a4,Ba4c5,Bc5d3][%mdl 32]} Bd4 {[%emt 0:00:47] [#]} (37... Bd6 $16 38. Bg3 Bxg3 39. Qxg3 Qe2) 38. Bf2 $1 {[%emt 0:00:23]} Be5 {[%emt 0:01:21]} 39. Nc5 {[%emt 0:00:22]} Qg6 {[%emt 0:00:24]} 40. Nd3 {[%emt 0:00:00]} Bd6 {[%emt 0:00:00]} 41. Bc5 {[%emt 0:04:33]} Bxc5 {[%emt 0:03:04]} 42. Nxc5 {[%emt 0:00:06]} f6 {[%emt 0:01:09]} 43. Nd3 {[%emt 0:09:19]} Re4 {[%emt 0:01:24]} 44. Rc1 {[%emt 0:03:32]} Qe8 {[%emt 0:00:13]} 45. Qf2 {[%emt 0:01:35]} Re2 {[%emt 0:03:55]} 46. Re1 {[%emt 0:00:45]} Re4 {[%emt 0:00:52]} 47. Rc1 {[%emt 0:01:50]} Re2 {[%emt 0:05:13]} 48. Re1 {[%emt 0:00:17]} Re4 {[%emt 0:00:58]} 49. Rc1 $2 {[%emt 0:00:12] Weighted Error Value: White=0.19 (very precise) /Black=0.18 (very precise)} (49. Kg1 $18) 1/2-1/2

[Event "Hungarian Championship Women 2022"]
[Site "Budapest"]
[Date "2022.12.05"]
[Round "1.3"]
[White "Mihok-Juhasz, Barbara"]
[Black "Dudas, Eszter"]
[Result "1-0"]
[ECO "B04"]
[WhiteElo "2206"]
[BlackElo "2135"]
[Annotator "TA"]
[PlyCount "43"]
[EventDate "2022.12.03"]
[EventType "tourn"]
[EventCountry "HUN"]
[SourceTitle "playchess.com"]
[Source "ChessBase"]
[SourceQuality "1"]
[TimeControl "40/5400+30:1800+30"]

{[%evp 16,43,34,26,35,20,14,0,46,0,0,0,0,0,5,0,33,10,15,0,49,37,95,72,423,422,420,422,396,409]} 1. e4 {[%emt 0:00:34][%cal Be2e4,Be4e5][%mdl 32]} Nf6 {[%emt 0:00:41]} 2. e5 {[%emt 0:00:10]} Nd5 {[%emt 0:00:08]} 3. d4 {[%emt 0:00:00]} d6 {[%emt 0:00:21]} 4. Nf3 {[%emt 0:01:13]} g6 {[%emt 0:00:41]} 5. Bc4 {[%emt 0:02:32]} Nb6 {[%emt 0:00:24]} 6. Bb3 {[%emt 0:00:06]} Bg7 {[%emt 0:00:13]} 7. Ng5 {[%emt 0:05:15]} e6 {[%emt 0:02:14]} 8. Qf3 {[%emt 0:00:39]} Qe7 {[%emt 0:00:10]} 9. Ne4 $1 {[%emt 0:02:40] Strongly threatening exd6.} dxe5 {[%emt 0:01:54] B04: Alekhine's Defence: 4 Nf3.} 10. Bg5 {[%emt 0:03:25] Prevents f5.} Qb4+ {[%emt 0:01:10]} 11. Nbd2 {[%emt 0:20:18] Threatens to win with Bf6.} N8d7 {[%emt 0:32:58]} (11... exd4 $11 12. a3 Qb5) 12. Nf6+ {[%emt 0:36:43]} ({Reject} 12. c3 Qa5 $15) (12. dxe5 $1 $14 Bxe5 13. O-O-O) 12... Nxf6 {[%emt 0:06:54]} 13. Bxf6 {[%emt 0:00:05] [#]} Bxf6 $146 {[%emt 0:03:24]} ({Predecessor:} 13... O-O 14. dxe5 Bd7 15. O-O-O Bc6 16. Qg3 Bxf6 17. exf6 Nd7 18. c3 Qc5 19. Ne4 Qh5 {0-1 (59) Khoury,T (1813)-Villa Tornero,A (2114) Batumi 2022}) 14. Qxf6 {[%emt 0:00:06]} O-O $132 {[%emt 0:00:20][%mdl 2048] Black has counterplay} 15. Qxe5 {[%emt 0:04:48]} Nd7 {[%emt 0:09:10]} 16. Qxc7 {[%emt 0:04:11] Threatening c3.} Qxd4 {[%emt 0:01:44]} 17. O-O-O {[%emt 0:00:20]} Qc5 {[%emt 0:06:56]} (17... Qxf2 $11 18. Rhe1 Nc5) 18. Qf4 {[%emt 0:03:39]} Kg7 {[%emt 0:05:02]} (18... Qf5 $14 19. Qxf5 exf5) 19. h4 {[%emt 0:02:37][%cal Oh4h5] White is more active.} Nf6 $2 {[%emt 0:05:46][%mdl 8192] [#] Prevents h5.} (19... Qe5 $16 {is tougher.} 20. Qxe5+ Nxe5) 20. Qxf6+ $3 $18 {[%emt 0:01:35][%mdl 512]} Kxf6 {[%emt 0:00:26]} 21. Ne4+ {[%emt 0:00:04]} Kg7 {[%emt 0:00:26]} 22. Nxc5 {[%emt 0:00:12] Weighted Error Value: White=0.14 (very precise) /Black=0.69} 1-0

[Event "Hungarian Championship Women 2022"]
[Site "Budapest"]
[Date "2022.12.05"]
[Round "1.4"]
[White "Szente Varga, Fruzsina"]
[Black "Ivan-Gal, Hanna Krisztina"]
[Result "1/2-1/2"]
[ECO "B23"]
[WhiteElo "2075"]
[BlackElo "2164"]
[Annotator "TA"]
[PlyCount "112"]
[EventDate "2022.12.03"]
[EventType "tourn"]
[EventCountry "HUN"]
[SourceTitle "playchess.com"]
[Source "ChessBase"]
[SourceQuality "1"]
[TimeControl "40/5400+30:1800+30"]

{[%evp 9,112,15,20,16,39,29,25,29,64,74,109,111,119,62,59,61,93,60,93,72,85,55,52,0,0,-24,-14,-49,-37,-56,-19,-28,0,-46,-61,-179,-175,-184,-194,-291,-283,-289,-272,-341,-345,-402,-399,-392,-211,-315,0,-398,-382,-320,-280,-282,-275,-348,-342,-347,-322,-685,-610,-1037,-1029,-1013,-1000,-943,-427,-408,0,-89,-89,-89,-89,-89,-89,-96,-88,-110,-2,-2,-2,-11,-19,-63,0,0,0,0,0,0,0,0,0,0,0,0,0,0,0,0,0,0,0]} 1. e4 {[%emt 0:00:34]} c5 {[%emt 0:00:40]} 2. Nc3 {[%emt 0:00:05]} e6 {[%emt 0:00:12]} 3. f4 {[%emt 0:00:10]} a6 {[%emt 0:03:31]} 4. Nf3 {[%emt 0:00:17]} Qc7 {[%emt 0:01:08]} 5. g3 {[%emt 0:02:55]} b5 {[%emt 0:00:47]} 6. Bg2 {[%emt 0:02:13] B23: Closed Sicilian: Lines without g3.} Bb7 {[%emt 0:00:07]} 7. d3 {[%emt 0:10:14]} Nc6 {[%emt 0:02:03]} 8. O-O {[%emt 0:00:08] White has an edge.} Nf6 {[%emt 0:03:49]} 9. e5 {[%emt 0:02:55]} b4 {[%emt 0:00:14]} 10. exf6 {[%emt 0:13:35]} bxc3 {[%emt 0:00:12] [#]} 11. fxg7 $146 {[%emt 0:00:37]} (11. bxc3 $16 {Hoping for fxg7.} gxf6 12. f5) ({Predecessor:} 11. bxc3 gxf6 12. Be3 Ne7 13. d4 Nf5 14. Bf2 Bd5 15. Re1 Be7 16. dxc5 Bxc5 17. Qxd5 Bxf2+ 18. Kxf2 {1-0 (57) Pastor Briones,J (1843)-Delseny,S (1998) Benidorm 2009}) 11... Bxg7 $14 {[%emt 0:00:06]} 12. bxc3 {[%emt 0:01:25]} Bxc3 {[%emt 0:04:15]} 13. Rb1 {[%emt 0:00:47][%cal Of4f5]} f5 {[%emt 0:04:51]} 14. Rb3 {[%emt 0:14:21]} Bf6 {[%emt 0:05:10]} 15. Ne5 {[%emt 0:00:23]} O-O {[%emt 0:02:41]} 16. g4 {[%emt 0:12:24]} (16. Bb2 $1 $14) 16... Rab8 $11 {[%emt 0:14:47]} 17. Nxc6 {[%emt 0:06:34]} Bxc6 {[%emt 0:00:38]} 18. g5 {[%emt 0:00:04]} Bd4+ {[%emt 0:02:44]} 19. Kh1 {[%emt 0:00:10]} Bxg2+ {[%emt 0:06:34]} 20. Kxg2 {[%emt 0:00:44]} Qc6+ {[%emt 0:00:14]} 21. Qf3 {[%emt 0:01:47]} (21. Kg3 $11 {is more appropriate.}) 21... Qa4 $15 {[%emt 0:04:19]} 22. Be3 {[%emt 0:04:04]} (22. Qe2 $15) 22... Qxa2 $19 {[%emt 0:03:38]} 23. Rxb8 {[%emt 0:01:22]} Rxb8 {[%emt 0:00:04]} 24. Rf2 {[%emt 0:01:32]} (24. Bxd4 $142 cxd4 25. Qe2) 24... Bxe3 {[%emt 0:01:12]} 25. Qxe3 {[%emt 0:00:05][%mdl 4096] Endgame KQR-KQR} Qd5+ {[%emt 0:00:26]} 26. Kh3 {[%emt 0:01:56]} a5 {[%emt 0:03:04]} 27. Qg3 {[%emt 0:00:52]} Qd4 {[%emt 0:05:48]} 28. Rg2 {[%emt 0:00:59]} Qg7 {[%emt 0:07:24]} (28... Kf7 $142 29. Qh4 Rh8) 29. Qe3 {[%emt 0:03:23]} (29. Qf2 $142) 29... Qd4 {[%emt 0:03:50]} 30. Qg3 {[%emt 0:00:03]} Kf7 {[%emt 0:05:31]} 31. Qh4 {[%emt 0:06:37]} Qg7 {[%emt 0:00:50]} 32. Qh5+ {[%emt 0:03:29]} Qg6 {[%emt 0:00:12]} 33. Qe2 {[%emt 0:00:09]} Rb4 {[%emt 0:01:22]} 34. Kg3 {[%emt 0:01:25]} Qg7 {[%emt 0:03:46] Against c3} 35. h4 $2 {[%emt 0:02:08]} (35. Rg1) 35... a4 {[%emt 0:02:55] [#] Threatens to win with ...a3.} 36. h5 {[%emt 0:06:19]} a3 {[%emt 0:03:50] And now ...a2 would win.} 37. c3 {[%emt 0:01:17] Against a2} Rb2 {[%emt 0:01:37]} 38. Qe1 {[%emt 0:00:19]} Rb3 {[%emt 0:01:14]} (38... Qh8 $142 {White must now prevent ...Rxg2+.} 39. h6 Qa8 40. g6+ Kxg6) 39. Rc2 {[%emt 0:00:33]} Rb2 $2 {[%emt 0:02:17]} ({Better is} 39... Qf8 $19 40. Qe5 Rb2) 40. Qc1 {[%emt 0:00:00]} (40. Rg2 $1 $11 {keeps the balance.} Qh8 41. h6) 40... Rxc2 $17 {[%emt 0:00:00]} 41. Qxc2 {[%emt 0:00:59] KQ-KQ} Qf8 {[%emt 0:04:58]} 42. Qa4 {[%emt 0:11:56][%csl LRa3,LRd7]} Qd6 {[%emt 0:00:45]} 43. d4 {[%emt 0:00:35]} cxd4 {[%emt 0:00:44]} (43... Qd5 {simplifies} 44. Qxa3 Qh1 45. Qa7 Qe1+) 44. cxd4 {[%emt 0:00:03]} a2 {[%emt 0:03:46]} ({Black should try} 44... Ke7 $17) 45. Qxa2 $11 {[%emt 0:00:20]} Qxd4 {[%emt 0:00:03]} 46. Qe2 {[%emt 0:00:48] Inhibits Qe3+.} Qg1+ {[%emt 0:00:43]} 47. Kh3 {[%emt 0:01:58]} d5 {[%emt 0:03:18]} (47... Kf8 $15) 48. h6 {[%emt 0:04:25] The position is equal.} Qh1+ {[%emt 0:06:03]} 49. Kg3 {[%emt 0:00:04]} Qg1+ {[%emt 0:00:31]} (49... d4 $5 50. Qe5 $8 Qg1+ 51. Kh3 Qg4+ 52. Kh2 Qh5+ 53. Kg2 Qg4+ 54. Kh2 Qh5+ 55. Kg2 Qg4+ 56. Kh2 $11) 50. Kh3 $1 {[%emt 0:00:30]} Qh1+ {[%emt 0:00:26]} 51. Kg3 {[%emt 0:00:07]} d4 {[%emt 0:03:21] [#] Strongly threatening ...Qg1+.} 52. Qe5 {[%emt 0:01:33] aiming for Qf6+.} Qg1+ {[%emt 0:00:14]} 53. Kf3 {[%emt 0:01:22]} Qf1+ {[%emt 0:00:18]} 54. Kg3 {[%emt 0:00:09]} Qg1+ {[%emt 0:00:08]} 55. Kf3 {[%emt 0:00:05]} Qf1+ {[%emt 0:00:37]} 56. Kg3 {[%emt 0:00:06] Qf6+ is the strong threat.} Qg1+ {[%emt 0:00:08] Whites escaped into a draw.   Weighted Error Value: White=0.43/Black=0.43} 1/2-1/2

[Event "Hungarian Championship Women 2022"]
[Site "Budapest"]
[Date "2022.12.05"]
[Round "1.5"]
[White "Erdos, Boglarka"]
[Black "Terbe, Julianna"]
[Result "0-1"]
[ECO "B06"]
[WhiteElo "2180"]
[BlackElo "2282"]
[Annotator "TA"]
[PlyCount "104"]
[EventDate "2022.12.03"]
[EventType "tourn"]
[EventCountry "HUN"]
[SourceTitle "playchess.com"]
[Source "ChessBase"]
[SourceQuality "1"]
[TimeControl "40/5400+30:1800+30"]

{[%evp 9,104,22,35,0,11,0,0,0,9,2,0,0,53,0,0,-10,-11,-37,-45,-38,-36,-61,-56,-56,0,-15,8,0,0,0,0,0,0,0,0,0,0,0,0,-5,0,-16,-15,-67,-66,-70,-68,-68,-58,-91,-91,-185,-129,-304,-118,-225,-200,-213,-243,-307,-198,-179,-102,-184,-181,-150,0,-135,-149,-275,-164,-272,-263,-269,-270,-377,-376,-386,-338,-414,-414,-1105,-1100,-1115,-1049,-1205,-1174,-1494,-1615,-1571,-1361,-1963,-1876,-1663,-1420,-4810,-4701]} 1. e4 {[%emt 0:00:34]} g6 {[%emt 0:00:38]} 2. Nf3 {[%emt 0:01:24]} Bg7 {[%emt 0:00:17]} 3. d4 {[%emt 0:00:33]} d6 {[%emt 0:00:11]} 4. Nc3 {[%emt 0:01:58]} a6 {[%emt 0:00:15]} 5. Be3 {[%emt 0:11:32]} b5 {[%emt 0:00:27]} 6. a3 {[%emt 0:00:10] B06: Modern Defence.} Bb7 {[%emt 0:00:45]} 7. Qd2 {[%emt 0:09:19]} Nd7 {[%emt 0:02:21]} 8. d5 {[%emt 0:06:11] The position is equal.} c5 {[%emt 0:09:50] Against Nd4} 9. dxc6 {[%emt 0:12:05]} Bxc6 {[%emt 0:00:08]} 10. Nd4 {[%emt 0:00:26]} Rc8 {[%emt 0:07:45]} (10... Bb7 $11) 11. Be2 {[%emt 0:19:45]} (11. a4 $14 b4 12. Na2) 11... Bb7 $1 $11 {[%emt 0:08:54]} 12. O-O {[%emt 0:00:36]} (12. a4 $5 {[%cal Ra4b5]}) 12... Ngf6 {[%emt 0:02:19] [#]} 13. Bh6 $146 {[%emt 0:04:11]} (13. Rfd1 {simplifies} O-O 14. f3 Ne5 15. Bg5) ({Predecessor:} 13. f3 O-O 14. Rad1 Qc7 15. Bh6 Nb6 16. Bxg7 Kxg7 17. Kh1 Nc4 {½-½ (17) Albrecht,G (2098)-Biskopics,M (2043) Hungary 2012}) 13... O-O {[%emt 0:05:24]} (13... Nxe4 14. Nxe4 Bxh6 15. Nxd6+ exd6 16. Qxh6 $16) 14. Bxg7 {[%emt 0:00:32]} Kxg7 {[%emt 0:00:06]} 15. Qe3 {[%emt 0:03:06]} e5 {[%emt 0:13:22]} 16. Nb3 {[%emt 0:02:51]} Nc5 {[%emt 0:08:32]} (16... Qc7 {simplifies} 17. Nd2 Qb6 18. Qxb6 Nxb6 19. Rfe1 Rfd8) 17. Nxc5 {[%emt 0:00:57]} dxc5 {[%emt 0:01:04]} 18. Rfd1 {[%emt 0:00:29] Inhibits Qd4.} Qe7 {[%emt 0:00:48]} 19. Nd5 {[%emt 0:04:30]} Bxd5 {[%emt 0:08:01]} 20. exd5 {[%emt 0:00:05]} Ne8 {[%emt 0:03:58]} 21. a4 {[%emt 0:03:10]} Nd6 {[%emt 0:01:06]} 22. axb5 {[%emt 0:00:58]} axb5 {[%emt 0:00:05]} 23. Ra6 {[%emt 0:01:01]} Rfd8 {[%emt 0:03:11]} 24. Qa3 {[%emt 0:06:49]} b4 {[%emt 0:06:07]} 25. Qa5 {[%emt 0:02:03]} Qh4 {[%emt 0:01:54]} 26. c3 {[%emt 0:04:44]} (26. Qa4 $11) 26... Qe4 $15 {[%emt 0:08:18]} (26... Ne4 27. g3 Qh3 28. cxb4 $11) 27. Kf1 {[%emt 0:00:22][%cal Oa6c6]} Qf4 $40 {[%emt 0:03:26][%mdl 128] White needs to defend precisely.} 28. g3 {[%emt 0:01:42]} Qe4 {[%emt 0:00:07][%cal Re4h1]} 29. f3 {[%emt 0:00:04]} Qe3 {[%emt 0:01:04] Strongly threatening ...Nf5.} 30. Qa1 {[%emt 0:01:59]} (30. cxb4 $17 cxb4 31. Qxb4) 30... e4 {[%emt 0:02:08]} ({Better is} 30... Nf5 $1 $19 31. Qb1 bxc3 32. bxc3 Qxc3) 31. f4 $2 {[%emt 0:01:05]} (31. Qc1 $17 Nf5 32. fxe4 Qxe4 33. Kf2) 31... bxc3 $2 {[%emt 0:01:43]} (31... Nf5 $19 {[%cal Of5g3] is more deadly. Threatens to win with ...Nxg3+!} 32. c4 h5) 32. bxc3 {[%emt 0:00:07] [#]} (32. Ra3 $17 Ra8 33. Rxc3 (33. Rxa8 Rxa8 34. Qxa8 c2 $17) 33... Rxa1 34. Rxe3 Rxd1+ 35. Bxd1) 32... c4 $1 $19 {[%emt 0:00:01]} 33. Bg4 {[%emt 0:00:57]} Rb8 {[%emt 0:00:44]} 34. Qc1 {[%emt 0:00:30]} Qxc1 {[%emt 0:01:37]} 35. Rxc1 {[%emt 0:00:02] [#]} Rb5 {[%emt 0:00:30]} (35... Rb2 $1 $19 36. Be2 Nf5) 36. Rd1 {[%emt 0:00:46]} (36. Rc6 $17 {was worth a try.}) 36... Rb3 {[%emt 0:00:11]} 37. Rc1 {[%emt 0:00:40]} Rb5 {[%emt 0:00:38]} 38. Rd1 {[%emt 0:00:07]} Rb2 {[%emt 0:00:10] Prevents Ra2.} 39. Kg1 {[%emt 0:01:00]} (39. Be2 $17 {was necessary.}) 39... Rc2 {[%emt 0:01:02]} (39... Nb5 $142 40. Rb6 Rb3) 40. Rb1 {[%emt 0:00:00]} (40. Rc6 {might work better.}) 40... h5 {[%emt 0:00:00]} (40... Rxc3 $2 {loses.} 41. Rc6 $19) 41. Bh3 {[%emt 0:08:05]} e3 {[%emt 0:04:13][%cal Od6b5]} (41... Rxc3 $2 {is the wrong capture.} 42. Bf1 $19) 42. Bg2 {[%emt 0:10:46]} Rxc3 {[%emt 0:00:10][%cal Od6b5]} 43. Re1 {[%emt 0:06:19]} Nf5 {[%emt 0:02:12]} 44. Be4 {[%emt 0:03:08]} Nd4 {[%emt 0:00:25]} 45. Ra2 {[%emt 0:00:33]} (45. d6 $142) 45... Re8 {[%emt 0:01:53] Black is clearly winning.} 46. Bg2 {[%emt 0:00:20]} Rd3 {[%emt 0:04:50] ...c3 is the strong threat.} 47. d6 {[%emt 0:04:04]} c3 {[%emt 0:06:50] aiming for ...c2.} 48. d7 {[%emt 0:01:14]} Rd8 {[%emt 0:00:57]} 49. Be4 {[%emt 0:00:28]} Rd2 {[%emt 0:00:06]} 50. Raa1 {[%emt 0:00:35]} Rxd7 {[%emt 0:05:13] Hoping for ...f5.} 51. Rxe3 {[%emt 0:00:22]} Re7 {[%emt 0:00:08]} 52. Ree1 {[%emt 0:00:40]} Ne2+ {[%emt 0:02:04] Weighted Error Value: White=0.74/Black=0.23 (precise)} 0-1